bitfinex/quotes_SOLUSD_20241213
["timestamp","ask_amount","ask_price","bid_price","bid_amount"]
[1734074936942,8.42821746,223.81,223.79,1.6321]
[1734074939036,8.42821746,223.82,223.79,1.6321]
[1734074939335,8.42821746,223.83,223.79,1.6321]
[1734074942351,20.0,223.87,223.79,10.06031746]
[1734074942532,20.0,223.87,223.81,8.42821746]
[1734074942955,8.42821746,223.87,223.81,8.42821746]
[1734074943366,8.42821746,223.86,223.8,23.776884]
[1734074945256,8.42821746,223.86,223.8,32.20510146]
[1734074946444,20.0,223.91,223.81,9.09828782]
[1734074946751,8.42821746,223.88,223.82,23.776884]
[1734074947140,8.42821746,223.9,223.83,9.09823481]
[1734074947454,5.61986791,223.96,223.85,8.42821746]
[1734074947659,8.42821746,223.92,223.85,8.42821746]
[1734074948551,11.26606633,224.01,223.89,8.42821746]
[1734074948552,7.14726791,224.01,223.89,8.42821746]
[1734074948742,8.42821746,223.95,223.89,8.42821746]
[1734074949182,5.61986791,224.01,223.91,8.42821746]
[1734074949339,9.88003024,224.08,223.97,8.42821746]
[1734074949340,8.42821746,224.03,223.97,8.42821746]
[1734074949543,8.42821746,224.03,223.96,8.42821746]
[1734074949778,32.868683,224.09,223.96,8.42821746]
[1734074949779,15.0,224.09,223.96,8.42821746]
[1734074949976,8.42821746,224.03,223.96,8.42821746]
[1734074950149,8.42821746,224.01,223.95,32.20510146]
[1734074950569,8.42821746,223.99,223.92,0.66968667]
[1734074950770,8.42821746,223.99,223.92,9.09790413]
[1734074951084,8.42821746,223.99,223.93,23.776884]
[1734074952381,11.1577,224.06,223.93,23.776884]
[1734074952382,8.42821746,224.0,223.93,32.20510146]
[1734074953475,8.42821746,223.99,223.92,32.20510146]
[1734074953861,8.42821746,223.99,223.91,2.18929168]
[1734074954063,8.42821746,223.96,223.91,1.5196]
[1734074954875,8.42821746,223.94,223.91,1.5196]
[1734074955877,8.42821746,223.95,223.91,1.5196]
[1734074956189,8.42821746,223.93,223.91,1.5196]
[1734074956386,8.42821746,223.92,223.86,25.376984]
[1734074956691,8.42821746,223.92,223.86,1.6001]
[1734074957971,12.96402492,224.03,223.86,1.6001]
[1734074957972,8.42821746,223.93,223.87,23.776884]
[1734074958877,8.42821746,223.94,223.87,23.776884]
[1734074959091,8.42821746,223.94,223.87,32.20510146]
[1734074960369,8.42821746,223.94,223.87,23.776884]
[1734074960575,8.42821746,223.93,223.87,23.776884]
[1734074962285,8.42821746,223.94,223.87,32.20510146]
[1734074963493,8.42821746,223.95,223.88,8.42821746]
[1734074965568,8.42821746,223.95,223.87,23.776884]
[1734074965569,8.42821746,223.94,223.87,32.20510146]
[1734074968895,8.42821746,223.88,223.73,1.5907]
[1734074969100,8.42821746,223.85,223.77,8.42821746]
[1734074969328,8.42821746,223.85,223.78,8.42821746]
[1734074970208,8.42821746,223.84,223.77,8.42821746]
[1734074970390,8.42821746,223.84,223.78,23.776884]
[1734074970699,8.42821746,223.83,223.76,8.42821746]
[1734074971290,8.42821746,223.84,223.76,8.42821746]
[1734074971490,8.42821746,223.86,223.79,8.42821746]
[1734074972396,8.42821746,223.85,223.78,32.20510146]
[1734074972601,13.4,223.79,223.71,1.77167955]
[1734074972902,8.42821746,223.8,223.56,8.42821746]
[1734074972903,20.0,223.69,223.56,8.42821746]
[1734074973081,29.09821746,223.69,223.58,8.42821746]
[1734074973275,20.67,223.69,223.58,8.42821746]
[1734074973495,20.0,223.69,223.58,8.42821746]
[1734074973706,28.42821746,223.69,223.58,8.42821746]
[1734074975180,33.20227983,223.69,223.57,13.20227983]
[1734074975684,33.20227983,223.69,223.56,0.67069803]
[1734074976002,33.20227983,223.69,223.57,13.20227983]
[1734074977207,63.20227983,223.69,223.57,13.20227983]
[1734074977404,63.20227983,223.69,223.59,13.20227983]
[1734074977592,63.20227983,223.69,223.6,13.20227983]
[1734074978518,63.20227983,223.69,223.59,13.20227983]
[1734074980022,63.20227983,223.69,223.56,0.67065811]
[1734074980023,63.20227983,223.69,223.62,13.20227983]
[1734074980488,63.20227983,223.69,223.6,13.87294454]
[1734074981007,63.20227983,223.69,223.61,13.20227983]
[1734074981416,63.20227983,223.69,223.6,13.20227983]
[1734074981982,63.20227983,223.69,223.59,13.20227983]
[1734074982303,63.20227983,223.69,223.57,13.20227983]
[1734074982806,63.20227983,223.69,223.55,21.27047983]
[1734074983402,63.20227983,223.69,223.55,21.94124241]
[1734074985607,63.20227983,223.69,223.55,8.73896258]
[1734074985912,63.87227983,223.69,223.55,8.73896258]
[1734074986703,43.87227983,223.69,223.58,13.20227983]
[1734074986897,30.0,223.69,223.58,13.87296581]
[1734074987095,43.20227983,223.69,223.6,13.20227983]
[1734074987308,43.20227983,223.69,223.6,13.87290708]
[1734074987693,43.20227983,223.69,223.6,0.67062725]
[1734074990717,30.0,223.69,223.6,0.67062725]
[1734074991016,30.0,223.69,223.62,13.20227983]
[1734074991194,43.20227983,223.69,223.62,13.20227983]
[1734074991528,43.20227983,223.69,223.61,13.20227983]
[1734074991700,13.20227983,223.69,223.61,13.20227983]
[1734074993594,13.20227983,223.69,223.6,13.87290708]
[1734074994901,13.20227983,223.69,223.65,1.6096]
[1734074995099,13.20227983,223.7,223.65,8.0965]
[1734074995298,8.44528689,223.71,223.65,8.0965]
[1734074995507,8.44528689,223.72,223.65,17.21232843]
[1734074995927,8.44528689,223.74,223.67,8.44528689]
[1734074996220,8.44528689,223.74,223.67,9.11570278]
[1734074996899,6.09781569,223.78,223.69,23.776884]
[1734074997101,8.44528689,223.76,223.69,32.89258018]
[1734074997305,13.18808568,223.77,223.71,23.776884]
[1734074998015,13.18808568,223.78,223.71,13.18808568]
[1734074998828,0.67,223.84,223.75,13.18808568]
[1734074999016,13.18808568,223.82,223.76,23.776884]
[1734075001727,13.18808568,223.81,223.76,23.776884]
[1734075002139,13.18808568,223.81,223.75,0.67016823]
[1734075002140,13.18808568,223.81,223.75,23.776884]
[1734075002945,20.0,223.86,223.75,23.776884]
[1734075003165,13.18808568,223.8,223.74,6.3055]
[1734075003327,13.18808568,223.79,223.74,6.3055]
[1734075003753,13.18808568,223.75,223.74,6.3055]
[1734075003959,13.18808568,223.75,223.73,1.5322]
[1734075005260,13.18808568,223.76,223.73,1.5322]
[1734075010364,0.67,223.83,223.73,1.5322]
[1734075010365,13.18808568,223.77,223.73,1.5322]
[1734075010960,13.18808568,223.76,223.73,1.5322]
[1734075011666,13.18808568,223.75,223.73,1.5322]
[1734075014959,13.18808568,223.74,223.68,8.5645]
[1734075015163,13.18808568,223.73,223.68,8.5645]
[1734075016637,13.18808568,223.72,223.68,8.5645]
[1734075017268,8.44452592,223.7,223.68,8.5645]
[1734075017465,8.44452592,223.69,223.68,1.0]
[1734075020363,20.0,223.74,223.68,1.0]
[1734075020565,8.44452592,223.73,223.68,1.0]
[1734075022464,8.44452592,223.74,223.68,1.0]
[1734075022758,8.44452592,223.75,223.68,9.44452592]
[1734075023170,13.19041657,223.75,223.68,14.19041657]
[1734075023963,13.19041657,223.74,223.68,1.0]
[1734075024141,13.19041657,223.73,223.68,1.0]
[1734075024336,13.19041657,223.72,223.68,1.0]
[1734075024661,13.19041657,223.69,223.68,1.0]
[1734075028556,13.86041657,223.74,223.68,1.0]
[1734075028557,13.19041657,223.7,223.68,1.0]
[1734075029769,0.67,223.75,223.68,1.0]
[1734075029770,13.19041657,223.74,223.68,1.0]
[1734075030755,13.19041657,223.76,223.69,13.19041657]
[1734075032355,13.19041657,223.75,223.68,14.19041657]
[1734075033542,0.67,223.8,223.73,13.19041657]
[1734075033864,13.19041657,223.81,223.75,13.19041657]
[1734075034041,13.19041657,223.82,223.75,13.19041657]
[1734075034243,13.19041657,223.83,223.76,13.19041657]
[1734075035557,6.68353884,223.87,223.79,13.19041657]
[1734075035558,7.35353884,223.87,223.79,13.19041657]
[1734075035749,13.19041657,223.87,223.8,13.19041657]
[1734075036070,13.19041657,223.86,223.79,13.19041657]
[1734075037337,13.19041657,223.85,223.78,13.19041657]
[1734075037542,13.19041657,223.85,223.79,23.776884]
[1734075038552,0.67,223.89,223.79,36.96730057]
[1734075038761,13.19041657,223.86,223.79,36.96730057]
[1734075039676,13.19041657,223.84,223.77,13.19041657]
[1734075040780,13.19041657,223.85,223.78,13.19041657]
[1734075041165,13.19041657,223.86,223.78,13.19041657]
[1734075041366,13.19041657,223.87,223.79,13.19041657]
[1734075042282,13.19041657,223.86,223.79,13.19041657]
[1734075043282,13.19041657,223.86,223.76,0.67016146]
[1734075043283,13.19041657,223.91,223.84,13.19041657]
[1734075043760,0.67,223.92,223.84,13.19041657]
[1734075043959,13.19041657,223.9,223.83,13.19041657]
[1734075045568,13.19041657,223.93,223.86,13.19041657]
[1734075045973,13.19041657,223.92,223.85,13.19041657]
[1734075046864,13.19041657,223.93,223.86,13.19041657]
[1734075047468,13.19041657,223.95,223.88,13.19041657]
[1734075047669,13.19041657,223.95,223.89,1.6096]
[1734075047871,13.19041657,223.95,223.89,8.2583]
[1734075049897,13.19041657,223.94,223.89,8.2583]
[1734075051185,8.42815391,223.94,223.89,8.2583]
[1734075051866,8.42815391,223.9,223.77,8.0235]
[1734075052095,8.42815391,223.89,223.83,23.776884]
[1734075053101,20.0,223.93,223.86,8.42815391]
[1734075053276,13.17000224,223.93,223.87,1.5675]
[1734075053479,13.17000224,223.94,223.87,14.73750224]
[1734075053796,13.84000224,223.93,223.87,1.5675]
[1734075054169,13.17000224,223.95,223.88,36.94688624]
[1734075056609,20.0,223.97,223.89,13.17000224]
[1734075056775,13.17000224,223.97,223.9,13.17000224]
[1734075057904,20.0,223.99,223.93,13.17000224]
[1734075058080,13.17000224,224.0,223.93,13.17000224]
[1734075058279,13.17000224,224.01,223.94,13.17000224]
[1734075058483,13.17000224,224.01,223.95,1.5594]
[1734075059708,13.17000224,224.03,223.96,36.94688624]
[1734075060211,13.17000224,224.04,223.97,13.17000224]
[1734075060376,13.84000224,224.03,223.95,14.72940224]
[1734075060581,13.17000224,224.02,223.95,14.72940224]
[1734075060805,13.17000224,224.0,223.95,1.5594]
[1734075061716,13.17000224,224.01,223.95,1.5594]
[1734075062406,13.17000224,223.98,223.95,1.5594]
[1734075062911,13.17000224,223.97,223.94,6.463]
[1734075063328,13.17000224,223.98,223.94,6.463]
[1734075063823,13.17000224,224.0,223.94,6.463]
[1734075064031,13.17000224,223.99,223.94,6.463]
[1734075064325,13.17000224,224.0,223.94,6.463]
[1734075064717,13.84000224,224.03,223.96,13.17000224]
[1734075064931,13.17000224,224.03,223.97,23.776884]
[1734075065229,13.17000224,224.07,223.99,13.17000224]
[1734075065795,13.17000224,224.07,223.99,36.94688624]
[1734075066142,13.17000224,224.05,223.98,14.70340224]
[1734075066426,0.67,224.04,223.98,14.70340224]
[1734075066630,13.17000224,224.05,223.98,14.70340224]
[1734075066812,13.84000224,224.04,223.98,1.5334]
[1734075067315,0.67,224.04,223.98,14.70340224]
[1734075067523,13.17000224,224.05,223.98,14.70340224]
[1734075068393,11.1563,224.09,223.98,1.5334]
[1734075068394,13.84000224,224.04,223.98,1.5334]
[1734075070101,13.17000224,224.04,223.98,1.5334]
[1734075070519,0.67,224.03,223.98,1.5334]
[1734075070706,13.84000224,224.03,223.98,1.5334]
[1734075071421,13.17000224,224.03,223.98,1.5334]
[1734075071635,13.17000224,224.04,223.98,1.5334]
[1734075073207,13.17000224,224.05,223.98,14.70340224]
[1734075073833,13.17000224,224.06,223.99,13.17000224]
[1734075074141,13.84000224,224.05,223.98,14.70340224]
[1734075074343,13.17000224,224.04,223.98,1.5334]
[1734075075225,8.4195161,224.05,223.98,9.9529161]
[1734075075610,0.67,224.08,223.98,1.5334]
[1734075075838,8.4195161,224.06,223.99,8.4195161]
[1734075076112,8.4195161,224.07,223.99,8.4195161]
[1734075076644,8.4195161,224.08,224.01,8.4195161]
[1734075076853,8.4195161,224.07,224.0,8.4195161]
[1734075077010,0.67,224.1,224.02,32.1964001]
[1734075077214,11.8226,224.17,224.06,8.4195161]
[1734075077545,0.67,224.17,224.08,1.6368]
[1734075077740,0.67,224.17,224.08,10.0563161]
[1734075077941,0.67,224.17,224.08,1.6368]
[1734075077942,8.4195161,224.15,224.08,1.6368]
[1734075078117,9.0895161,224.14,224.08,1.6368]
[1734075078519,8.4195161,224.12,224.08,1.6368]
[1734075079350,13.14734711,224.12,224.08,1.6368]
[1734075079715,13.14734711,224.12,224.03,6.2417]
[1734075079716,13.14734711,224.09,224.03,6.2417]
[1734075079955,13.14734711,224.08,224.03,6.2417]
[1734075081050,13.14734711,224.09,224.03,6.2417]
[1734075081426,20.0,224.13,224.03,6.2417]
[1734075081745,13.14734711,224.09,224.03,6.2417]
[1734075084047,13.14734711,224.08,224.03,6.2417]
[1734075084843,13.14734711,224.1,224.03,19.38904711]
[1734075085029,0.67,224.09,224.03,19.38904711]
[1734075086755,13.14734711,224.1,224.03,19.38904711]
[1734075086924,13.14734711,224.11,224.04,13.14734711]
[1734075088036,13.81734711,224.12,224.05,13.14734711]
[1734075088237,33.14734711,224.13,224.06,13.14734711]
[1734075088663,20.0,224.13,224.07,13.14734711]
[1734075089730,13.14734711,224.14,224.07,13.14734711]
[1734075089948,13.14734711,224.1,224.03,19.38904711]
[1734075094166,13.14734711,224.11,224.03,19.38904711]
[1734075094654,20.0,224.13,224.05,13.14734711]
[1734075094958,33.14734711,224.13,224.06,13.14734711]
[1734075095162,13.14734711,224.12,224.05,13.14734711]
[1734075095363,0.67,224.12,224.04,13.14734711]
[1734075095532,13.14734711,224.11,224.04,13.14734711]
[1734075095726,13.81734711,224.1,224.03,19.38904711]
[1734075096662,13.14734711,224.1,224.03,19.38904711]
[1734075096839,13.14734711,224.11,224.04,13.14734711]
[1734075097565,13.14734711,224.12,224.04,13.14734711]
[1734075097767,20.0,224.14,224.07,36.92423111]
[1734075097939,13.14734711,224.12,224.05,13.14734711]
[1734075098131,13.81734711,224.12,224.05,13.14734711]
[1734075098647,13.14734711,224.12,224.05,13.14734711]
[1734075099355,8.41452981,224.11,224.04,32.19141381]
[1734075099560,8.41452981,224.09,224.03,6.2417]
[1734075101660,8.41452981,224.09,224.03,14.65622981]
[1734075102361,8.41452981,224.1,224.03,14.65622981]
[1734075102663,8.41452981,224.09,224.03,6.2417]
[1734075103047,28.41452981,224.12,224.04,8.41452981]
[1734075103243,20.0,224.15,224.05,8.41452981]
[1734075103445,8.41452981,224.13,224.06,8.41452981]
[1734075107168,20.0,224.16,224.07,23.776884]
[1734075107373,8.41452981,224.13,224.07,23.776884]
[1734075108655,20.67,224.15,224.07,23.776884]
[1734075108889,8.41452981,224.13,224.07,23.776884]
[1734075111681,8.41452981,224.11,224.03,6.2417]
[1734075111884,8.41452981,224.1,224.04,23.776884]
[1734075112176,0.67,224.15,224.04,32.19141381]
[1734075112177,8.41452981,224.11,224.04,32.19141381]
[1734075116550,0.67,224.15,224.05,8.41452981]
[1734075116749,8.41452981,224.12,224.05,8.41452981]
[1734075116981,8.41452981,224.11,224.04,32.19141381]
[1734075118186,20.67,224.15,224.06,23.776884]
[1734075118370,20.67,224.15,224.06,32.19141381]
[1734075118371,8.41452981,224.14,224.06,32.19141381]
[1734075118553,20.67,224.16,224.06,32.19141381]
[1734075118885,8.41452981,224.14,224.06,32.19141381]
[1734075119059,20.67,224.16,224.06,32.19141381]
[1734075119060,21.77363061,224.17,224.08,23.776884]
[1734075119381,8.41452981,224.12,224.05,23.776884]
[1734075119973,8.41452981,224.11,224.05,23.776884]
[1734075120184,8.41452981,224.08,224.03,6.2417]
[1734075120483,8.41452981,224.07,224.03,6.2417]
[1734075120683,8.41452981,224.08,224.03,6.2417]
[1734075121586,20.0,224.12,224.03,6.2417]
[1734075121782,8.41452981,224.08,224.03,6.2417]
[1734075123081,8.41452981,224.07,224.03,6.2417]
[1734075123294,20.0,224.12,224.01,1.598]
[1734075123295,8.41452981,224.04,224.01,1.598]
[1734075123494,8.41452981,224.02,224.01,1.598]
[1734075124195,0.67,224.06,224.01,1.598]
[1734075124355,20.0,224.07,224.01,1.598]
[1734075124560,8.41452981,224.06,224.01,1.598]
[1734075126295,8.41452981,224.05,224.01,1.598]
[1734075126588,20.0,224.09,224.01,1.598]
[1734075126796,8.41452981,224.06,224.01,1.598]
[1734075127362,0.67,224.11,224.02,32.19141381]
[1734075127561,8.41452981,224.09,224.02,32.86087203]
[1734075128197,0.67,224.13,224.02,32.86087203]
[1734075128375,0.67,224.15,224.04,32.19141381]
[1734075128578,8.41452981,224.11,224.04,32.19141381]
[1734075129095,8.41452981,224.1,224.03,32.19141381]
[1734075129498,8.41452981,224.09,224.04,23.776884]
[1734075129990,8.41452981,224.09,224.03,23.776884]
[1734075130198,8.41452981,224.09,224.01,1.598]
[1734075130199,8.41452981,224.06,224.01,1.598]
[1734075130988,8.41452981,224.05,224.01,1.598]
[1734075131194,8.41452981,224.04,224.01,1.598]
[1734075131395,8.41452981,224.05,224.01,1.598]
[1734075132120,8.41452981,224.06,224.01,1.598]
[1734075134109,11.825,224.12,224.01,1.598]
[1734075134324,20.67,224.12,224.01,10.68202889]
[1734075134606,8.41452981,224.08,224.01,10.68202889]
[1734075134980,8.41452981,224.09,224.02,32.19141381]
[1734075135588,8.41452981,224.08,224.02,23.776884]
[1734075136412,8.41452981,224.06,224.01,1.598]
[1734075136811,8.41452981,224.07,224.01,1.598]
[1734075138691,0.67,224.11,224.01,10.01252981]
[1734075138692,8.41452981,224.08,224.01,10.01252981]
[1734075140212,0.67,224.12,224.02,23.776884]
[1734075140514,8.41452981,224.09,224.02,23.776884]
[1734075142071,8.41452981,224.11,224.04,32.19141381]
[1734075142204,8.41452981,224.12,224.04,32.19141381]
[1734075142406,8.41452981,224.12,224.06,23.776884]
[1734075143293,0.67,224.2,224.12,23.776884]
[1734075143493,8.41452981,224.2,224.13,9.08360219]
[1734075144123,7.37072947,224.26,224.15,23.776884]
[1734075144124,0.67,224.25,224.15,23.776884]
[1734075144295,8.41452981,224.21,224.15,23.776884]
[1734075144810,8.41452981,224.22,224.15,32.19141381]
[1734075145312,8.41452981,224.23,224.16,8.41452981]
[1734075145497,8.41452981,224.24,224.17,8.41452981]
[1734075145692,8.94688151,224.26,224.18,9.08350604]
[1734075145918,8.94688151,224.26,224.19,8.41452981]
[1734075146292,8.41452981,224.25,224.18,8.41452981]
[1734075147094,8.41452981,224.25,224.16,0.66897623]
[1734075147095,8.94688151,224.26,224.19,15.02022981]
[1734075147294,8.94688151,224.26,224.19,19.73622034]
[1734075147295,13.66287204,224.26,224.19,19.73622034]
[1734075147618,0.5323517,224.26,224.21,13.13052034]
[1734075147810,0.5323517,224.26,224.2,23.776884]
[1734075147811,0.5323517,224.26,224.24,1.505]
[1734075148013,0.5323517,224.26,224.24,14.63552034]
[1734075148225,0.5323517,224.26,224.25,23.776884]
[1734075148391,0.5323517,224.26,224.25,37.57612769]
[1734075152921,0.5323517,224.26,224.25,37.82710769]
[1734075155209,0.5323517,224.26,224.25,37.57612769]
[1734075156606,0.5323517,224.26,224.25,37.82710769]
[1734075161114,0.5323517,224.26,224.25,44.26960769]
[1734075161533,13.13052034,224.38,224.26,0.25098]
[1734075161740,0.67,224.4,224.26,0.25098]
[1734075161741,13.80052034,224.4,224.33,13.13052034]
[1734075161921,0.67,224.44,224.34,13.13052034]
[1734075162119,13.13052034,224.41,224.34,13.13052034]
[1734075162639,13.13052034,224.42,224.35,37.57585396]
[1734075162832,13.13052034,224.43,224.36,13.13052034]
[1734075163027,13.13052034,224.44,224.37,13.13052034]
[1734075164812,13.13052034,224.45,224.38,13.13052034]
[1734075165219,13.13052034,224.46,224.4,23.776884]
[1734075167242,8.38800323,224.46,224.4,23.776884]
[1734075167815,0.5323517,224.48,224.35,0.66827359]
[1734075167816,8.38800323,224.45,224.35,0.66827359]
[1734075168020,8.38800323,224.44,224.38,23.776884]
[1734075168527,8.38800323,224.45,224.38,32.16488723]
[1734075168829,0.5323517,224.48,224.42,8.38800323]
[1734075170040,0.5323517,224.48,224.43,8.38800323]
[1734075170245,0.5323517,224.48,224.44,32.16488723]
[1734075170543,0.5323517,224.48,224.45,8.38800323]
[1734075170746,0.5323517,224.48,224.47,8.38800323]
[1734075171041,0.5323517,224.48,224.47,32.16488723]
[1734075171343,0.5323517,224.48,224.47,32.83292527]
[1734075173351,0.5323517,224.48,224.47,37.53797031]
[1734075173530,0.5323517,224.48,224.47,37.66346031]
[1734075177442,0.5323517,224.48,224.47,37.78895031]
[1734075179753,0.5323517,224.48,224.47,37.66346031]
[1734075181849,0.5323517,224.48,224.47,37.53797031]
[1734075182561,0.5323517,224.48,224.47,37.66346031]
[1734075184232,5.17e-05,224.48,224.47,37.66346031]
[1734075185066,5.17e-05,224.48,224.47,52.78895031]
[1734075185438,5.17e-05,224.48,224.47,37.78895031]
[1734075185746,5.17e-05,224.48,224.47,52.78895031]
[1734075186532,5.17e-05,224.48,224.47,67.78895031]
[1734075186754,5.17e-05,224.48,224.47,69.43905031]
[1734075186956,13.09304827,224.64,224.52,20.0]
[1734075187263,13.09304827,224.65,224.57,13.09304827]
[1734075187639,13.09304827,224.63,224.56,13.09304827]
[1734075187961,13.09304827,224.63,224.55,13.09304827]
[1734075188259,13.09304827,224.58,224.47,1.6501]
[1734075188435,13.09304827,224.57,224.5,13.09304827]
[1734075188769,13.09304827,224.55,224.47,2.31806974]
[1734075188936,13.09304827,224.55,224.48,13.09304827]
[1734075189136,13.09304827,224.55,224.47,2.31806974]
[1734075189453,13.09304827,224.54,224.47,14.74314827]
[1734075190562,13.09304827,224.53,224.46,13.09304827]
[1734075190769,13.09304827,224.52,224.45,13.09304827]
[1734075190962,13.09304827,224.52,224.44,6.3632]
[1734075191142,13.09304827,224.51,224.44,19.45624827]
[1734075191442,2.2207,224.57,224.45,13.09304827]
[1734075191443,13.09304827,224.52,224.45,13.09304827]
[1734075191765,13.09304827,224.53,224.46,13.09304827]
[1734075191972,13.09304827,224.54,224.47,13.09304827]
[1734075192269,13.09304827,224.55,224.48,13.09304827]
[1734075192441,13.09304827,224.54,224.47,13.09304827]
[1734075192641,13.09304827,224.55,224.48,13.09304827]
[1734075192943,13.09304827,224.55,224.47,13.09304827]
[1734075193138,1.5507,224.57,224.47,13.09304827]
[1734075193139,13.09304827,224.54,224.47,13.09304827]
[1734075193340,8.38226648,224.54,224.47,8.38226648]
[1734075194240,1.5507,224.57,224.48,8.38226648]
[1734075194241,8.38226648,224.55,224.48,8.38226648]
[1734075195460,8.38226648,224.55,224.46,23.776884]
[1734075195461,8.38226648,224.54,224.47,8.38226648]
[1734075195761,8.38226648,224.54,224.46,32.15915048]
[1734075195945,9.05226648,224.53,224.44,6.3632]
[1734075196142,9.05226648,224.53,224.46,8.38226648]
[1734075196665,8.38226648,224.53,224.46,8.38226648]
[1734075197556,8.38226648,224.53,224.37,15.0]
[1734075197557,8.38226648,224.48,224.38,6.0024]
[1734075197763,8.38226648,224.47,224.4,8.38226648]
[1734075199086,8.38226648,224.48,224.4,8.38226648]
[1734075199865,8.38226648,224.45,224.37,0.66826721]
[1734075200062,8.38226648,224.46,224.37,0.66826721]
[1734075200263,8.38226648,224.47,224.4,8.38226648]
[1734075200459,8.38226648,224.44,224.37,0.66826721]
[1734075200761,8.38226648,224.44,224.37,8.38226648]
[1734075200964,8.38226648,224.44,224.36,8.38226648]
[1734075201475,8.38226648,224.41,224.32,0.66837761]
[1734075201663,8.38226648,224.42,224.35,8.38226648]
[1734075202370,8.38226648,224.43,224.36,8.38226648]
[1734075202567,8.38226648,224.44,224.36,8.38226648]
[1734075202980,8.38226648,224.44,224.37,8.38226648]
[1734075203185,8.38226648,224.44,224.34,23.776884]
[1734075203186,13.1075569,224.45,224.38,13.1075569]
[1734075203978,13.1075569,224.44,224.37,13.1075569]
[1734075204362,1.5145,224.46,224.38,13.1075569]
[1734075204363,13.1075569,224.45,224.38,13.1075569]
[1734075204867,13.1075569,224.47,224.4,13.1075569]
[1734075205069,13.1075569,224.47,224.39,13.1075569]
[1734075205364,13.1075569,224.46,224.39,13.1075569]
[1734075206172,13.1075569,224.45,224.38,36.8844409]
[1734075206369,13.1075569,224.44,224.37,13.1075569]
[1734075207097,13.1075569,224.5,224.43,13.1075569]
[1734075208083,13.1075569,224.5,224.42,13.1075569]
[1734075208084,13.1075569,224.49,224.42,13.1075569]
[1734075209293,13.1075569,224.48,224.41,13.1075569]
[1734075209609,13.1075569,224.49,224.42,13.1075569]
[1734075209889,13.1075569,224.48,224.41,13.1075569]
[1734075212280,13.1075569,224.49,224.42,13.1075569]
[1734075212577,13.1075569,224.47,224.39,13.77578762]
[1734075212788,1.5652,224.51,224.38,13.1075569]
[1734075212789,13.1075569,224.45,224.38,13.1075569]
[1734075213008,13.1075569,224.44,224.37,13.1075569]
[1734075213999,13.1075569,224.45,224.38,13.1075569]
[1734075217591,13.1075569,224.45,224.37,0.66837778]
[1734075217592,13.1075569,224.44,224.37,13.77593468]
[1734075218098,13.1075569,224.44,224.37,13.1075569]
[1734075218991,13.7775569,224.43,224.35,36.8844409]
[1734075219195,13.1075569,224.39,224.32,13.1075569]
[1734075219407,13.1075569,224.37,224.3,13.1075569]
[1734075219596,13.1075569,224.4,224.32,13.1075569]
[1734075219778,13.1075569,224.4,224.33,13.77604406]
[1734075219976,13.1075569,224.4,224.32,13.1075569]
[1734075220299,13.1075569,224.38,224.31,13.1075569]
[1734075220994,13.1075569,224.37,224.3,13.1075569]
[1734075221598,13.1075569,224.38,224.31,13.1075569]
[1734075222589,13.1075569,224.37,224.3,13.77615023]
[1734075222784,13.1075569,224.4,224.33,20.0]
[1734075223180,8.39279093,224.39,224.32,8.39279093]
[1734075225213,0.67,224.44,224.33,8.39279093]
[1734075225395,8.39279093,224.4,224.33,8.39279093]
[1734075225597,8.39279093,224.44,224.37,8.39279093]
[1734075225790,1.5139,224.46,224.35,23.776884]
[1734075225791,8.39279093,224.45,224.38,8.39279093]
[1734075226591,0.67,224.46,224.38,8.39279093]
[1734075226902,8.39279093,224.45,224.38,8.39279093]
[1734075228411,8.39279093,224.44,224.37,32.16967493]
[1734075230719,8.39279093,224.45,224.38,8.39279093]
[1734075232704,8.39279093,224.45,224.37,32.16967493]
[1734075235322,8.39279093,224.44,224.37,32.16967493]
[1734075240603,8.39279093,224.43,224.35,10.05899093]
[1734075240806,8.39279093,224.43,224.36,23.776884]
[1734075241008,8.39279093,224.4,224.35,1.6662]
[1734075242021,0.67,224.39,224.3,2.28550279]
[1734075242327,8.39279093,224.36,224.3,1.6171]
[1734075242824,8.39279093,224.35,224.3,1.6171]
[1734075244112,8.39279093,224.36,224.3,1.6171]
[1734075245923,0.67,224.42,224.32,8.39279093]
[1734075246228,8.39279093,224.39,224.32,8.39279093]
[1734075247205,8.39279093,224.38,224.31,32.16967493]
[1734075247813,8.39279093,224.36,224.3,1.6171]
[1734075248312,8.39279093,224.35,224.3,1.6171]
[1734075248631,8.39279093,224.36,224.3,1.6171]
[1734075251533,8.39279093,224.38,224.31,8.39279093]
[1734075252048,9.06279093,224.37,224.3,1.6171]
[1734075252330,8.39279093,224.36,224.3,1.6171]
[1734075252721,8.39279093,224.35,224.3,1.6171]